Cogmind - Beta 16 @@@ ROGUE MODE // 2025.11.17 @ 16:54:06 // Winter2019/RPGLIKE Player: Jaegerpls Result: Destroyed self via exploding Fusion Modulator Performance ------------- Evolutions (5) 2500 Regions Visited (4) 800 Robots Destroyed (65) 325 Value Destroyed (1556) 1556 Prototype IDs (27) 540 Alien Tech Used (0) 0 Bonus (800) 800 TOTAL SCORE: 6521 Bonus ------- Registered with UFD 300 Met Optimus in HQ 500 Cogmind --------- Core Integrity 0/650 Matter 259/300 Energy 105/150 System Corruption 4% Temperature Warm (172) Movement Hovering (111) Ox1 Location -5/Factory Parts ------- > --- POWER (1) -------- Micro Fission Core > --- PROPULSION (3) --- Antigrav System Antigrav System Linear Gravjet > --- UTILITY (5) ------ Advanced Cooling System Improved Signal Interpreter Experimental Terrain Scanner Precision Energy Filter Advanced Hacking Suite > --- WEAPON (2) ------- Enhanced Nova Cannon Enhanced Nova Cannon > --- INVENTORY (1) ---- Advanced Shield Generator Peak State ------------ > --- POWER ------------ Micro Fission Core > --- PROPULSION ------- Antigrav System Antigrav System Linear Gravjet > --- UTILITY ---------- Advanced Cooling System Improved Signal Interpreter Experimental Terrain Scanner Precision Energy Filter Advanced Hacking Suite > --- WEAPON ----------- Enhanced Nova Cannon Enhanced Nova Cannon > --- INVENTORY -------- Advanced Shield Generator [Rating: 73] Favorites ----------- Power Ion Engine Engine Ion Engine Power Core Micro Fission Core Propulsion Light Treads Treads Light Treads Hover Unit Linear Gravjet Utility Improved Heat Sink Device Improved Heat Sink Processor Improved Signal Interpreter Hackware Advanced Hacking Suite Protection Light Armor Plating Weapon Phase Cannon Energy Gun Subdweller Laser Energy Cannon Phase Cannon Ballistic Gun Assault Rifle Ballistic Cannon Light Cannon Special Weapon Junk Cannon Slashing Weapon Makeshift Axe Build | -11 -10 -10 -7 -5 ------- Run | Yrd Mat Sub Scr Fac Slots Evolved 7 | 4 1 1 . 1 Power . | . . . . . Propulsion 2 | 1 . . . 1 Utility 4 | 2 1 1 . . Weapon 1 | 1 . . . . Parts Attached 47 | 7 12 5 7 16 Power 3 | 1 . . . 2 Engine 2 | 1 . . . 1 Core 1 | . . . . 1 Reactor . | . . . . . Propulsion 7 | 2 . . . 5 Treads 2 | 2 . . . . Leg . | . . . . . Wheel . | . . . . . Hover 5 | . . . . 5 Flight . | . . . . . Utility 23 | 2 8 3 4 6 Device 12 | 2 4 1 1 4 Storage . | . . . . . Processor 4 | . 1 . 2 1 Hackware 4 | . 2 1 . 1 Protection 3 | . 1 1 1 . Artifact . | . . . . . Weapon 14 | 2 4 2 3 3 Energy Gun 1 | . . 1 . . Energy Cannon 7 | . 2 . 2 3 Ballistic Gun 2 | 2 . . . . Ballistic Cannon 2 | . 2 . . . Launcher . | . . . . . Special Weapon 1 | . . . 1 . Impact Weapon . | . . . . . Slashing Weapon 1 | . . 1 . . Piercing Weapon . | . . . . . Special Melee Weapon . | . . . . . Unidentified Prototypes 3 | . . . 1 2 Parts Lost 1 | . . 1 . . Power . | . . . . . Propulsion . | . . . . . Utility 1 | . . 1 . . Weapon . | . . . . . Highest Loss Streak 1 | . . 1 . . To Critical Strikes . | . . . . . Average Backups . | . . 1 . 1 Power . | . . . . . Propulsion . | . . . . . Utility . | . . . . 1 Weapon . | . . 1 . . Tool/Special . | . . . . . Unused Backups 5 | . 1 1 1 2 Power . | . . . . . Propulsion . | . . . . . Utility 3 | . . . 1 2 Weapon 1 | . . 1 . . Tool/Special 1 | . 1 . . . Average Slot Usage (%) 87 | . 99 92 71 88 Engine 7 | . 11 9 7 3 Core 1 | . . . . 4 Treads 14 | . 23 19 15 2 Hover 5 | . . . . 19 Device 24 | . 26 21 23 25 Processor 9 | . 6 8 9 11 Hackware 2 | . 3 3 . 4 Protection 3 | . 2 9 2 . Energy Cannon 12 | . 5 18 10 16 Ballistic Cannon 3 | . 16 . . . Peak Build Rating 73 | 9 15 27 41 73 Average Rating 30 | 8 11 17 36 58 On Entrance 17 | . 9 13 27 40 Avg Prop Armor Cover (%) . | . . . . . Naked Turns . | . . . . . Heaviest Build 39 | 11 16 34 34 39 Greatest Support 40 | 40 40 40 40 40 Greatest Overweight (x) 2 | 1 . . . 2 Average Overweight (x) . | . . . . . Largest Inventory Capacity 1 | 1 1 1 1 1 Average Capacity 1 | 1 1 1 1 1 Most Carried 1 | . 1 1 1 1 Average Carried . | . . . . 1 Final Capacity 1 | 1 1 1 1 1 Final Carried 1 | . 1 1 1 1 Class Distribution -------------------- 75% | Mutant 13% | Scout 9% | Skirmisher Dominant Class ---------------- Mutant | -10/Materials Mutant | -10/Subcaves Mutant | -7/Scraptown Scout | -5/Factory Resources | -11 -10 -10 -7 -5 ----------- Run | Yrd Mat Sub Scr Fac Matter Collected 1421 | 244 748 80 80 269 Remotely 372 | . 372 . . . Salvage Created 2463 | 239 586 129 196 1313 Parts 125 | 21 47 8 2 47 Haulers Intercepted 1 | . 1 . . . Recyclers Shooed 8 | . 4 . . 4 Parts Field Recycled . | . . . . . Retrieved Matter . | . . . . . Parts Self-Destructed 13 | . . 13 . . Prevented . | . . . . . Parts Restored . | . . . . . Kills | -11 -10 -10 -7 -5 ------- Run | Yrd Mat Sub Scr Fac Combat Hostiles Destroyed 31 | . 14 4 . 13 Cannons 29 | . 14 4 . 11 AOE 1 | . . . . 1 Classes Destroyed 13 | 3 6 1 . 3 Worker 10 | 4 6 . . . Builder 2 | . . . . 2 Tunneler 4 | 4 . . . . Hauler 1 | . 1 . . . Recycler 8 | 1 4 . . 3 Mechanic 2 | . 1 . . 1 Operator 2 | . 2 . . . Watcher 5 | . 3 . . 2 Swarmer 11 | . 9 2 . . Grunt 9 | . 5 . . 4 Sentry 3 | . . . . 3 Programmer 6 | . . . . 6 Subdweller 2 | . . 2 . . Best Kill Streak 6 | 5 6 2 . 4 Combat Bots Only 4 | . 3 2 . 4 Max Kills in Single Turn 2 | 1 2 1 . 1 Gunslinging . | . . . . . Exploded 1 | . . . . 1 Melee . | . . . . . Uniques/NPCs Destroyed . | . . . . . Combat | -11 -10 -10 -7 -5 -------- Run | Yrd Mat Sub Scr Fac Hostile Shots Fired 189 | . 62 49 . 78 Missed 53 | . 11 15 . 27 Hits 136 | . 51 34 . 51 Projectile 136 | . 51 34 . 51 AOE 1 | . . . . 1 Critical Strikes 1 | . . . . 1 Damage Taken 2293 | . 430 644 . 1219 Core 1707 | . 331 372 . 1004 Absorbed by Shields . | . . . . . Redirected to Core 1329 | . 249 292 . 788 Regen/Repaired (Parts) 201 | . . . 201 . Core Remaining (%) 69 | 100 . . 39 . Volleys Fired 200 | 16 62 30 6 86 Largest 2 | 2 2 2 1 2 Hottest 240 | 40 60 120 . 240 Shots Fired 363 | 32 124 58 6 143 Gun 33 | 32 . 1 . . Cannon 324 | . 124 57 . 143 Launcher . | . . . . . Special 6 | . . . 6 . Kinetic 156 | 32 124 . . . Thermal 201 | . . 58 . 143 Explosive . | . . . . . Electromagnetic . | . . . . . Impact 6 | . . . 6 . Robot Hit Streak 32 | 9 7 13 16 32 Robot Miss Streak 5 | 2 5 2 . 3 Penetration Max . | . . . . . Secondary Targets . | . . . . . Shots Hit Robots 206 | 19 60 31 6 90 Core Hits 85 | 9 32 6 2 36 Critical Kills 1 | . . . . 1 Critical Parts Destroyed 2 | . . . 2 . Critical Strikes 7 | . 4 . 2 1 Meltdown 1 | . . . . 1 Blast 4 | . 4 . . . Smash 2 | . . . 2 . Melee Attacks 10 | . . 10 . . Impact . | . . . . . Slashing 10 | . . 10 . . Piercing . | . . . . . Sneak Attacks . | . . . . . Combat Hostiles . | . . . . . Follow-up Attacks . | . . . . . Damage Inflicted 5737 | 233 1176 542 355 3431 Guns 233 | 233 . . . . Cannons 4937 | . 1176 542 . 3219 Explosions 212 | . . . . 212 Melee . | . . . . . Ramming . | . . . . . Kinetic 1409 | 233 1176 . . . Thermal 3973 | . . 542 . 3431 Explosive . | . . . . . Electromagnetic . | . . . . . Impact 355 | . . . 355 . Slashing . | . . . . . Piercing . | . . . . . Highest Corruption 4 | . . . . 4 Average Corruption 2 | . . . . 2 Corruption Purged . | . . . . . Corruption Blocked . | . . . . . Effects 25 | . . . . 25 Message Errors 4 | . . . . 4 Matter Fused 9 | . . . . 9 Heat Flow Errors 3 | . . . . 3 Energy Discharges 2 | . . . . 2 Data Loss (minor) 2 | . . . . 2 Data Loss (major) 3 | . . . . 3 Misfires 1 | . . . . 1 Weapon Failures 1 | . . . . 1 Overload Shots . | . . . . . Overflow Damage 300 | . 3 . 131 166 Projectiles 273 | . 3 . 131 139 Explosions 27 | . . . . 27 Melee . | . . . . . Knockbacks 18 | . 17 . 1 . Impact 1 | . . . 1 . Kinetic 16 | . 16 . . . Secondary 1 | . 1 . . . Self-Inflicted Damage 61 | . . . . 61 Shots 1 | . . . . 1 Rammed . | . . . . . Targets Rammed . | . . . . . Kicked . | . . . . . Crushed . | . . . . . Highest Temperature 408 | . 3 . . 408 Average Temperature 77 | . 3 . . 78 Received Heat Transfer 288 | . 27 87 . 174 Effects 3 | . . . . 3 Shutdowns 1 | . . . . 1 Matter Decay 1 | . . . . 1 Short Circuit 1 | . . . . 1 Siege Activations . | . . . . . Martial Activations . | . . . . . Shielding Activations . | . . . . . Robots Disrupted . | . . . . . Combat Hostiles . | . . . . . Robots Corrupted 1 | . . . 1 . Combat Hostiles . | . . . . . Parts Fried . | . . . . . Impact Corruptions 5 | . . . 5 . Robots Melted 1 | . . . . 1 Combat Hostiles 1 | . . . . 1 Parts Melted 12 | . . 4 . 8 Heat Transferred 4725 | . . 1147 . 3578 Parts Sabotaged . | . . . . . Parts Stolen . | . . . . . Parts Stripped . | . . . . . Power Chain Reactions . | . . . . . Alert | -11 -10 -10 -7 -5 ------- Run | Yrd Mat Sub Scr Fac Maximum Alert Level . | . . . . . Low Security (%) 100 | 100 100 . . 100 Level 1 . | . . . . . Level 2 . | . . . . . Level 3 . | . . . . . Level 4 . | . . . . . Level 5 . | . . . . . High Security . | . . . . . Max Security . | . . . . . Peak Influence 159 | 15 159 . . 123 Initial . | . . . . . Average 40 | . 69 . . 31 Influence Increases 1268 | 45 541 70 20 592 Destroy 0b10 Robot/C 580 | . 280 40 . 260 Destroy 0b10 Robot/NC 190 | 45 85 . 20 40 Destroy Leader 142 | . 68 . . 74 Successful Hack 4 | . . . . 4 Disable Machine 135 | . 60 . . 75 Destroy Structure 97 | . 3 . . 94 Lose Combat Pursuer 120 | . 45 30 . 45 Influence Decreases 1060 | 45 541 70 20 384 Time Decay 1060 | 45 541 70 20 384 Squads Dispatched 18 | . 2 . . 16 Investigation 6 | . 1 . . 5 Extermination 6 | . . . . 6 Reinforcement 6 | . 1 . . 5 Assault . | . . . . . Garrison . | . . . . . Intercept . | . . . . . Searches Triggered . | . . . . . Construction Impeded . | . . . . . Haulers Reinforced . | . . . . . Active Scanning Responses . | . . . . . Cargo Convoy Interrupts . | . . . . . Stealth | -11 -10 -10 -7 -5 --------- Run | Yrd Mat Sub Scr Fac Distress Signals 2 | . 1 . . 1 Communications Jammed . | . . . . . Distress Signals . | . . . . . Times Spotted 52 | . 26 4 . 22 Peak Tracking Total 5 | . 4 4 . 5 Tactical Retreats 4 | . 2 1 . 1 Traps | -11 -10 -10 -7 -5 ------- Run | Yrd Mat Sub Scr Fac Traps Triggered 5 | . 1 2 . 2 Indirectly . | . . . . . Trap Hack Attempts . | . . . . . Triggered . | . . . . . Disarmed . | . . . . . Reprogrammed . | . . . . . Reused . | . . . . . Traps Extracted . | . . . . . Installed . | . . . . . Triggered . | . . . . . Machines | -11 -10 -10 -7 -5 ---------- Run | Yrd Mat Sub Scr Fac Machines Disabled 10 | . 4 1 . 5 Max in Single Turn 3 | . 1 1 . 3 Machines Repaired . | . . . . . Machines Dismantled . | . . . . . Machines Sabotaged . | . . . . . Overloaded Fab Kills . | . . . . . Hacking | -11 -10 -10 -7 -5 --------- Run | Yrd Mat Sub Scr Fac Machines Accessed 21 | . 6 1 5 9 Terminals 7 | . 4 . . 3 Fabricators 1 | . . . . 1 Repair Stations . | . . . . . Recycling Units 6 | . 2 . . 4 Scanalyzers 1 | . . . . 1 Garrison Access . | . . . . . Total Hacks 79 | . 13 9 35 22 Successful 60 | . 5 9 35 11 Failed 18 | . 8 . . 10 Catastrophic 4 | . 2 . . 2 Database Lockouts 1 | . . . . 1 Manual 21 | . 12 . . 9 Terminals 16 | . 8 . . 8 Fabricators 4 | . . . . 4 Repair Stations . | . . . . . Recycling Units 13 | . 5 . . 8 Scanalyzers 2 | . . . . 2 Garrison Access . | . . . . . Terminal Hacks 45 | . . 9 35 1 Record 42 | . . 8 34 . Open Door 1 | . . . . 1 Proto ID Catalog 2 | . . 1 1 . Fabricator Hacks 2 | . . . . 2 Network Status 1 | . . . . 1 Build 1 | . . . . 1 Repair Station Hacks . | . . . . . Recycling Unit Hacks 3 | . 1 . . 2 Report Inventory 3 | . 1 . . 2 Scanalyzer 1 | . . . . 1 Retrieve Study 1 | . . . . 1 Garrison Access Hacks . | . . . . . Unauthorized Hacks 9 | . 4 . . 5 Terminals 3 | . 1 . . 2 Botnet 1 | . . . . 1 Skim 2 | . 1 . . 1 Fabricators . | . . . . . Repair Stations . | . . . . . Recycling Units 6 | . 3 . . 3 Reject 3 | . 2 . . 1 Recyclers 1 | . 1 . . . Fedlink 2 | . . . . 2 Scanalyzers . | . . . . . Garrison Access . | . . . . . Data Cores Recovered . | . . . . . Used . | . . . . . Hacking Detections 12 | . 6 . . 6 Full Trace Events 2 | . . . . 2 Feedback Events . | . . . . . Feedback Blocked . | . . . . . Robot Schematics Acquired . | . . . . . Robots Built . | . . . . . Authchips . | . . . . . Time . | . . . . . Total Robot Build Rating . | . . . . . Part Schematics Acquired . | . . . . . Parts Built 2 | . . . . 2 Authchips . | . . . . . Time 139 | . . . . 139 Total Part Build Rating 18 | . . . . 18 Part Studies Acquired 1 | . . . . 1 Parts Repaired . | . . . . . Time . | . . . . . Parts Recycled . | . . . . . Recycled Matter . | . . . . . Retrieved Matter . | . . . . . Retrieved Components . | . . . . . Parts Scanalyzed . | . . . . . Part Schematics Acquired . | . . . . . Parts Damaged . | . . . . . Bothacking | -11 -10 -10 -7 -5 ------------ Run | Yrd Mat Sub Scr Fac Used RIF Installer . | . . . . . Robots Hacked . | . . . . . Non-combat . | . . . . . Combat . | . . . . . Robot Hacks Applied . | . . . . . Relay Couplers Released . | . . . . . Fabnet Peak Effective % . | . . . . . Robots Rewired . | . . . . . Allies Hacked . | . . . . . Hacks Repelled . | . . . . . Allies | -11 -10 -10 -7 -5 -------- Run | Yrd Mat Sub Scr Fac Total Allies . | . . . . . Largest Group . | . . . . . Highest-Rated Group . | . . . . . Highest-Rated Ally . | . . . . . Total Orders . | . . . . . Ally Attacks . | . . . . . Total Damage . | . . . . . Kills . | . . . . . Allies Corrupted . | . . . . . Allies Melted . | . . . . . Intel | -11 -10 -10 -7 -5 ------- Run | Yrd Mat Sub Scr Fac Active Infowar (turns) 9916 | 807 2014 2281 2152 2662 Terrain 9892 | 783 2014 2281 2152 2662 Seismic 826 | 807 19 . . . Robot Analysis Total . | . . . . . Derelict Logs Recovered 1 | . . 1 . . Drone Launches . | . . . . . Drone Recoveries . | . . . . . Exploration | -11 -10 -10 -7 -5 ------------- Run | Yrd Mat Sub Scr Fac Turns Passed 9988 | 874 2014 2281 2157 2662 Spaces Moved 4594 | 61 1052 768 1289 1424 Core 9 | 9 . . . . Treads 3302 | 52 1052 768 1289 141 Legs . | . . . . . Wheels . | . . . . . Hover 1283 | . . . . 1283 Flight . | . . . . . Fastest Speed 32 | 50 160 160 160 32 Average Speed 133 | 144 160 160 160 73 Slowest Speed 200 | 160 160 160 160 200 Overloaded Moves . | . . . . . Propulsion Burnouts . | . . . . . Robots Hopped . | . . . . . Potential Cave-ins . | . . . . . Cave-ins Triggered . | . . . . . Exploration Rate (%) 50 | 5 96 42 87 21 Regions Visited 4 Branch Regions 2 Pre-discovered Areas 2 | . . 1 . 1 Known Exits Taken 1 | . . . 1 . Unknown Exits Taken 3 | 1 1 1 . . Scrap Searched 7 | . . 3 4 . Spaces Dug 26 | . . 1 . 25 Terrain Destroyed 47 | . . 1 . 46 Melee 1 | . . 1 . . Projectile 41 | . . . . 41 AOE 5 | . . . . 5 Terrain Rammed . | . . . . . Walls Destroyed . | . . . . . Machines Disabled . | . . . . . Actions | -11 -10 -10 -7 -5 --------- Run | Yrd Mat Sub Scr Fac Total 8093 | 811 1259 1749 1378 2896 Wait 3136 | 728 103 924 61 1320 Move 4590 | 60 1051 767 1288 1424 Hop . | . . . . . Pick Up 12 | . 4 3 4 1 Fast Attach 41 | 7 11 3 6 14 Attach 2 | . 1 . 1 . Detach 6 | . 1 2 . 3 Swap 11 | . 1 5 1 4 Drop 36 | . 11 3 8 14 Fire 200 | 16 62 30 6 86 Melee 10 | . . 10 . . Ram . | . . . . . Kick . | . . . . . Crush . | . . . . . Escape Stasis . | . . . . . Rewire . | . . . . . Trap . | . . . . . Miscellaneous 49 | . 14 2 3 30 Route ------- -11/Scrapyard -10/Materials (discovered 5 exits: [*Mat x3] / [*Min] / *Sub) -10/Subcaves (discovered 2 exits: [*Mat] / *Scr) -7/Scraptown (discovered 2 exits: *Fac x2) -5/Factory (discovered 1 exit: *Ext) History --------- Turn | Location | Event 1 | -11/Scrapyard | Upgraded with Propulsion slot (x1) 1 | -11/Scrapyard | Upgraded with Utility slot (x2) 1 | -11/Scrapyard | Upgraded with Weapon slot (x1) 6 | -11/Scrapyard | Discovered new exit (range 15) 875 | -11/Scrapyard | Entered Materials 876 | -10/Materials | Build established: Mutant 1113 | -10/Materials | Discovered new exit (range 12) 1252 | -10/Materials | Discovered new exit (range 16) 1326 | -10/Materials | Discovered new exit (range 15) 1797 | -10/Materials | Reached level 2 1800 | -10/Materials | Upgraded with Utility slot (x1) 1818 | -10/Materials | Discovered new exit (range 14) 2498 | -10/Materials | Discovered new exit (range 16) 2889 | -10/Materials | Entered Subcaves 2890 | -10/Subcaves | Approached by a straggling Scientist 2891 | -10/Subcaves | Reached level 3 3021 | -10/Subcaves | Shifting Twisted Machinery released Sub. Laser 3035 | -10/Subcaves | Shifting Twisted Machinery released Shrapnel Trap 3525 | -10/Subcaves | Upgraded with Utility slot (x1) 4341 | -10/Subcaves | Discovered new exit (range 12) 4421 | -10/Subcaves | Core integrity fell below 50% 4521 | -10/Subcaves | Learned location of Zion (-6) 4521 | -10/Subcaves | Met a Zionite searching for "candidates" 4779 | -10/Subcaves | Visited 4L-MR0's lab 4794 | -10/Subcaves | Found Power Bank 4795 | -10/Subcaves | Attached Power Bank, gained temporary slots: Power x3 5170 | -10/Subcaves | Entered Scraptown 5266 | -7/Scraptown | Visited UFD Registry 5266 | -7/Scraptown | Registered with UFD as "Cryofunk" 5302 | -7/Scraptown | Visited Scrapoid Research Area 5326 | -7/Scraptown | Visited Junk Repository 5370 | -7/Scraptown | Visited Chapter 10 5446 | -7/Scraptown | Delivered Scrap Shield to a Scientist 5591 | -7/Scraptown | Visited Infowarlord's Domain 5609 | -7/Scraptown | Found Exp. Terrain Scanner 5648 | -7/Scraptown | Visited Scrapoid Pod Storage 5670 | -7/Scraptown | Visited Observation Area 5691 | -7/Scraptown | Visited Junk Cannon Lab 5723 | -7/Scraptown | Found Prototype Special Weapon 5723 | -7/Scraptown | Identified Junk Cannon 5743 | -7/Scraptown | Discovered new exit (range 16) 5979 | -7/Scraptown | Visited Science Testing Area 6071 | -7/Scraptown | Visited Curators Association 6103 | -7/Scraptown | Visited Science Guys 6676 | -7/Scraptown | Discovered new exit (range 15) 6789 | -7/Scraptown | Visited Cave Peace 6853 | -7/Scraptown | Visited CR-KLE's Repair Center 6866 | -7/Scraptown | CR-KLE repaired 6 parts 6919 | -7/Scraptown | Visited Red Mages 6975 | -7/Scraptown | Visited Fellowship of the Rings 6997 | -7/Scraptown | Visited TADAMA 7018 | -7/Scraptown | Visited SPCMW 7052 | -7/Scraptown | Visited Shadow of the Wyrm 7231 | -7/Scraptown | Met Optimus 7231 | -7/Scraptown | Accepted into 0bPrime 7325 | -7/Scraptown | Identified exit to Factory 7327 | -7/Scraptown | Entered Factory 7328 | -5/Factory | Core integrity fell below 50% 7329 | -5/Factory | Reached level 4 7780 | -5/Factory | Discovered new exit (range 18) 7801 | -5/Factory | Identified exit to Extension 7867 | -5/Factory | Build established: Skirmisher 8232 | -5/Factory | Reached level 5 8234 | -5/Factory | Upgraded with Propulsion slot (x1) 8674 | -5/Factory | Central database locked down 8748 | -5/Factory | Loaded intel: 8 recycling unit locations 8979 | -5/Factory | Build established: Scout 9448 | -5/Factory | Core integrity fell below 20% 9854 | -5/Factory | Fabricated Enh. Nova Cannon (x2) 9899 | -5/Factory | Learned location of Protoforge (-2) 9989 | -5/Factory | Reached level 6 9989 | -5/Factory | Destroyed self via exploding Fusion Modulator Last Messages --------------- UFD!SANITIZING UFD!... World map updated: -2/Protoforge. 09899_ ALERT: Suspicious activity at Recycling Unit F002. Dispatching Investigation squad. 09903_ ALERT: Security rotation in progress. 09910_ ALERT: Potential suspicious activity detected, Programmers report to Factory Zone 3W. 09916_ System corrupted: Heat flow error (+195). 09957_ G-50 Soldier destroyed. 09961_ System corrupted: Component data lost. 09970_ G-50 Soldier destroyed. 09982_ System corrupted: Enh. Nova Cannon failed to cycle. 09986_ G-50 Soldier destroyed. 09989_ System corrupted: Component data lost. 09989_ Fusion Modulator explodes. 09989_ P-70 Sage destroyed. 09989_ Reached level 6. 09989_ Fusion Modulator explodes. 09989_ Destroyed Hpw. Shock Rifle. Map ----- +----------------------------------------------------+ | ???????"? """?"?" ###?# # ??? | | ??????""" ?"" """ "T" #?### + ? | | ????? ? """ #######################? | | ???? ######################## | | ?? ? ? ######?################# | | ?? ######?################# | | ? ? ######################## | | ? ? ######################## | | ? ? ######################## | | T####################### | | ? ? ####################### | | # ###### ######################## | | # #?#### ######################## | | # ###### # ###################### | | #+###### #;###################### | | #### ? ? # ########### | | ? + ? ? # ########### | | ####### ###?# # ] ########### | | ? ####### ##### ; ########### | | ###########k##### # ########### | | ########### ###?# ; [ ########### | | ########### ##### +% * ########### | | ########### ##### ;p%% ########### | | ###?####### ##### % =[ " " ########### | | ########### ##### ;= "Y" ########### | | #####?##### ##### ;@ """ ########### | | ###########+##### # ########### | | ###? """ ? # ###########;############ | | #### "T" ?# # t "########## | | #### ? # # ########### | | #### ? / + ########### | | #### """ """ o# # " ## | | #### """ """ # # # "" ## | | #### """ """ # # # F" ## | | #### ? # # # " ## | | ###? """ # # # "" ## | | #### ? """ # # # ## | | #### """ # # # ## | | #?#? # # # ## | | ###############Y# # # ## | | ################# ###############+#####"## | | #######?######### + |## | | ################# # ] ## | | ################# # ## | | ################# #""" ## | | ################# #""" ## | | ################# #""" ## | | ################# ###### # ## | | #?############### ###### ###+#### | | ################# ###### ### | +----------------------------------------------------+ Best States ------------- Heat Dissipation 74 Energy Generation 20 Energy Capacity 250 Matter Stores 300 Matter Capacity 300 Sight Range 16 Robot Scan Range 20 Terrain Scan Range 30 Terrain Scan Density 310 Armor Coverage 800 Evasion (%) 58 Targeting Accuracy 8 Recoil Reduction 2 Energy Filtering 50 Offensive Hacking 14 Defensive Hacking 11 Item Schematics ----------------- None Robot Schematics ------------------ None Fabricated ------------ Enh. Nova Cannon | x2 | -5/Factory | Preloaded Repaired ---------- Nothing Studied --------- Phase Cannon | -5/Factory | Hacked Alien Tech Used ----------------- None Achievements -------------- None Challenges ------------ None RPGLIKE | -11 -10 -10 -7 -5 --------- Run | Yrd Mat Sub Scr Fac Levels Raised 5 | . 1 1 . 3 XP Earned 10625 | 3000 2000 1200 900 3525 XP Spent 8780 | 2995 1500 1500 . 2785 Upgrades 28 | 11 2 2 . 13 Propulsion Slot 2 | 1 . . . 1 Utility Slot 4 | 2 1 1 . . Weapon Slot 1 | 1 . . . . Core Integrity 1 | . . . . 1 Heat Dissipation 3 | 1 . . . 2 Energy Generation 1 | . . . . 1 Mass Support 1 | . . . . 1 Inventory Capacity 1 | 1 . . . . Sensor Range 10 | 2 . 1 . 7 Terrain Scan Density 3 | 3 . . . . Ranged Accuracy 1 | . 1 . . . Protomatter Created 354 | . 98 15 18 223 Integrity Restored 1015 | . 292 . 54 669 Core 1011 | . 288 . 54 669 Parts 4 | . 4 . . . Protomatter Decayed 7 | . . 7 . . Game ------ Seed SingularityNovaWand Manual? 0 Play Time 00:56:36 Cumulative 64.5 hours Start 2025.11.17 @ 15:52:39 End 2025.11.17 @ 16:54:06 Sessions 1 Manual Loads 0 Difficulty Rogue Special Mode Winter2019/RPGLIKE Game No. 63 Rogue 63 Adventurer 0 Explorer 0 Win Type - Total 0 Types 0/0/0/0/0/0/0/0/0/0 Lore% 57 Gallery% 36 Achievement% 33 Wizard Run 0 Options --------- Layout 0 ASCII 0 Keyboard 0 Movement Mouse Keybinds 0 Fullscreen 2 Font 24/Smallcaps Map View 76x50 Zoom Use 0% Tactical HUD 1 Map Filters NONE Filters NONE Steam 1 RUN: 96df4158-3e45-4336-99b5-121929b55fb4